bitfinex/quotes_ETHUSD_20240926
["timestamp","ask_amount","ask_price","bid_price","bid_amount"]
[1727337902522,3.78566954,2634.6,2634.2,0.04700585]
[1727337902730,6.78566954,2635.0,2634.3,0.0759243]
[1727337902928,6.82149954,2635.2,2634.6,0.7971]
[1727337903088,3.88055317,2635.2,2634.6,0.7971]
[1727337903397,3.88055317,2635.2,2634.7,3.03638]
[1727337903398,3.78566954,2635.2,2634.7,3.03638]
[1727337903781,3.78566954,2635.2,2634.8,3.0829264]
[1727337903986,0.09488054,2635.4,2634.9,3.03614]
[1727337903987,3.78566954,2635.4,2634.9,3.03614]
[1727337904472,3.78566954,2635.4,2635.0,0.04663327]
[1727337904636,4.55738028,2635.4,2635.0,0.04663327]
[1727337904929,4.55738028,2635.4,2634.9,3.03615]
[1727337905099,4.55738028,2635.4,2635.1,0.04658671]
[1727337905293,4.55738028,2635.4,2634.9,3.03615]
[1727337905493,4.55738028,2635.4,2635.2,0.04654016]
[1727337905730,4.55738028,2635.4,2634.9,3.03615]
[1727337905934,7.55738028,2635.4,2635.3,0.04649361]
[1727337906233,7.65225696,2635.4,2634.7,3.11228143]
[1727337906389,7.65225696,2635.4,2635.3,0.04649361]
[1727337906390,7.55738028,2635.4,2635.3,0.04649361]
[1727337906786,6.78566954,2635.4,2635.3,0.04649361]
[1727337906992,3.0,2635.4,2635.1,0.8051]
[1727337907241,3.0,2635.5,2635.1,0.8051]
[1727337907406,4.14090199,2635.5,2635.2,0.04654016]
[1727337907727,4.14090199,2635.5,2635.1,0.8051]
[1727337908031,4.14090199,2635.5,2635.3,0.04649361]
[1727337908246,3.78566954,2635.6,2635.2,0.04654016]
[1727337908451,3.78566954,2635.6,2635.1,0.8051]
[1727337908452,3.78566954,2635.6,2635.1,3.84093]
[1727337908744,3.78566954,2635.6,2635.2,3.08227016]
[1727337908944,3.78566954,2635.8,2635.2,0.04654016]
[1727337909171,4.59109448,2635.8,2635.3,3.03568]
[1727337909457,4.59109448,2635.8,2635.3,0.04649361]
[1727337909458,7.62622448,2635.8,2635.3,0.04649361]
[1727337909646,3.0,2635.7,2635.3,0.04649361]
[1727337909858,3.0,2635.7,2635.1,6.87677]
[1727337910047,3.0,2635.7,2635.2,3.08236016]
[1727337912018,7.62622448,2635.8,2635.2,3.08236016]
[1727337912328,7.62622448,2635.8,2635.2,6.11810016]
[1727337912527,6.82079954,2635.8,2635.3,3.0357]
[1727337912726,6.82079954,2635.8,2635.2,3.08228016]
[1727337913019,3.03513,2635.8,2635.3,0.05114297]
[1727337913226,3.03525,2635.7,2635.2,3.03574]
[1727337913429,6.82079954,2635.8,2635.2,3.03574]
[1727337913859,0.39700595,2635.6,2635.2,3.03574]
[1727337914459,0.39700595,2635.6,2635.2,6.07149]
[1727337914647,0.39700595,2635.6,2635.2,6.0715]
[1727337914950,0.39700595,2635.6,2635.2,3.03574]
[1727337915269,3.03529,2635.7,2635.2,3.03574]
[1727337915417,0.39700217,2635.6,2635.2,3.03574]
[1727337916063,6.82079954,2635.8,2635.3,3.0357]
[1727337916259,6.82079954,2635.8,2635.2,3.03574]
[1727337916937,9.85603954,2635.8,2635.2,3.03574]
[1727337917139,3.0353,2635.7,2635.2,3.03574]
[1727337917671,6.82079954,2635.8,2635.1,0.8051]
[1727337917961,3.78566954,2635.4,2634.9,3.82168]
[1727337918151,6.91597953,2635.6,2635.0,3.03605]
[1727337918355,6.91596953,2635.6,2635.0,3.03605]
[1727337918550,7.68483648,2635.6,2635.0,3.03605]
[1727337918748,10.72027648,2635.6,2635.0,3.03605]
[1727337919070,7.58996649,2635.6,2635.0,3.03605]
[1727337919262,7.68483648,2635.6,2635.0,3.03605]
[1727337919523,7.68483648,2635.6,2635.0,3.03597]
[1727337920366,3.03549,2635.5,2635.0,3.03597]
[1727337921456,7.58996649,2635.6,2635.0,6.07195]
[1727337921642,3.03532,2635.7,2635.2,3.03581]
[1727337921978,6.82083954,2635.8,2635.3,0.8262]
[1727337922164,0.7913,2636.7,2635.3,0.8262]
[1727337922337,6.46624209,2636.3,2635.5,3.79292]
[1727337922537,3.43131087,2636.3,2635.7,3.03514]
[1727337923035,3.43131087,2636.3,2635.7,6.07031]
[1727337923278,3.03467,2636.2,2635.7,3.03514]
[1727337923452,6.82033954,2636.2,2635.7,3.03514]
[1727337923650,3.78566954,2636.2,2635.7,3.03514]
[1727337924462,3.78566954,2636.0,2635.5,3.79296]
[1727337924779,6.82058954,2636.0,2635.5,3.79291]
[1727337925140,3.03492,2636.0,2635.5,3.79291]
[1727337925559,3.84371,2636.1,2635.6,3.03535]
[1727337925875,3.84371,2636.1,2635.5,3.79291]
[1727337925876,3.03481,2636.1,2635.5,3.79291]
[1727337926052,3.03498,2636.0,2635.5,0.7575]
[1727337926249,4.16250435,2636.1,2635.5,0.7575]
[1727337926483,7.19736435,2636.1,2635.5,3.79296]
[1727337926640,3.03481,2636.1,2635.5,3.79296]
[1727337927052,6.06966,2636.1,2635.5,3.79296]
[1727337928761,3.03491,2636.0,2635.5,3.79296]
[1727337930490,3.03481,2636.1,2635.6,3.03528]
[1727337931177,3.0,2636.2,2635.7,0.89587649]
[1727337931374,3.03462,2636.3,2635.8,3.03507]
[1727337931810,3.03462,2636.3,2635.9,0.10394096]
[1727337932282,6.85890003,2636.3,2635.9,0.10394096]
[1727337932476,3.03467,2636.2,2635.7,0.82]
[1727337932800,3.03467,2636.2,2635.8,0.10269246]
[1727337933012,3.0348,2636.1,2635.8,0.10269246]
[1727337935106,3.03462,2636.3,2635.8,0.10269246]
[1727337935284,3.03468,2636.2,2635.8,0.10269246]
[1727337937493,3.03462,2636.3,2635.8,0.10269246]
[1727337937692,3.03479,2636.1,2635.8,0.10269246]
[1727337938682,3.03491,2636.0,2635.8,0.10269246]
[1727337938921,3.03501,2635.9,2635.8,0.10269246]
[1727337939505,3.03501,2635.9,2635.8,0.10250189]
[1727337939735,4.8154395,2636.0,2635.8,0.10250189]
[1727337939882,4.8154395,2636.0,2635.4,3.86069]
[1727337940196,3.79021,2636.0,2635.5,0.10261241]
[1727337940582,3.03491,2636.0,2635.5,3.13806241]
[1727337945958,3.03503,2635.9,2635.5,0.10261241]
[1727337946832,4.22738738,2635.9,2635.5,0.10261241]
[1727337947927,1.19235738,2635.9,2635.5,3.13807241]
[1727337948438,1.19235738,2635.8,2635.5,3.13807241]
[1727337948824,1.19235738,2635.8,2635.6,3.03534]
[1727337949045,1.19235738,2635.8,2635.7,0.10253873]
[1727337949460,1.58789032,2635.9,2635.7,0.10253873]
[1727337949898,1.58789032,2635.8,2635.7,0.10253873]
[1727337950081,1.58789032,2635.8,2635.5,3.03547]
[1727337950279,1.19399832,2635.7,2635.5,3.03547]
[1727337950447,1.19399832,2635.7,2635.6,0.10266027]
[1727337951697,1.58789032,2635.8,2635.6,0.10266027]
[1727337952599,1.58789032,2635.7,2635.6,0.10266027]
[1727337954487,1.98999817,2635.8,2635.6,0.10266027]
[1727337954887,1.59343454,2635.7,2635.6,0.10266027]
[1727337955425,1.98999817,2635.8,2635.6,0.10266027]
[1727337955426,1.99179407,2635.8,2635.6,0.10266027]
[1727337955718,1.59344262,2635.7,2635.6,0.10266027]
[1727337955902,3.03524,2635.7,2635.6,0.10266027]
[1727337956098,3.03524,2635.7,2635.2,3.8628]
[1727337956408,1.19523245,2635.3,2635.2,3.8628]
[1727337959103,1.19523245,2635.4,2635.3,3.0357]
[1727337959618,1.19523245,2635.4,2635.2,3.8628]
[1727337959823,1.19523245,2635.4,2635.2,6.89853]
[1727337960122,1.19523245,2635.4,2635.3,3.0357]
[1727337961681,1.19523245,2635.4,2635.3,3.1385202]
[1727337964331,1.19523245,2635.4,2635.3,0.1028202]
[1727337964332,8.0135795,2635.4,2635.3,0.1028202]
[1727337964616,11.81043552,2635.4,2635.3,0.1028202]
[1727337964918,0.7625,2634.8,2634.3,10.47678]
[1727337965118,1.19587299,2634.5,2634.4,3.03674]
[1727337965412,1.59449733,2634.6,2634.5,3.03662]
[1727337965413,1.19587299,2634.6,2634.5,3.03662]
[1727337965778,1.19587299,2634.6,2634.5,3.13225088]
[1727337966386,1.19587299,2634.7,2634.6,3.03651]
[1727337966774,1.19587299,2634.7,2634.6,3.13210401]
[1727337967809,1.19587299,2634.8,2634.6,3.13210401]
[1727337968175,1.19587299,2634.9,2634.6,3.13210401]
[1727337968615,1.19587299,2634.9,2634.7,0.8093]
[1727337968821,1.59449733,2635.1,2634.8,3.11217711]
[1727337968822,1.19587299,2635.1,2634.8,3.11217711]
[1727337968982,1.19587299,2635.1,2635.0,3.03605]
[1727337969186,1.19587299,2635.1,2635.0,3.84045]
[1727337969520,1.9907927,2635.4,2635.2,3.03582]
[1727337969521,1.19587299,2635.3,2635.2,3.03582]
[1727337969753,1.19587299,2635.3,2635.2,3.13119286]
[1727337969880,1.59449733,2635.4,2635.2,0.09537286]
[1727337969881,1.19587299,2635.4,2635.2,0.09537286]
[1727337970079,1.19587299,2635.3,2635.2,0.09537286]
[1727337970406,9.58028672,2635.4,2635.2,0.09537286]
[1727337970606,1.59204703,2635.3,2635.2,0.09537286]
[1727337970779,1.59204703,2635.3,2634.9,6.86368]
[1727337971119,1.19398961,2635.2,2635.0,3.03598]
[1727337972421,1.19398961,2635.2,2634.9,6.86367]
[1727337972597,1.19398961,2635.2,2634.9,3.82758]
[1727337973604,1.19398961,2635.2,2634.9,6.86368]
[1727337974307,1.19398961,2635.2,2634.9,3.03608]
[1727337974508,1.19398961,2635.2,2634.9,6.07218]
[1727337974695,1.19398961,2635.2,2634.9,3.03608]
[1727337975021,4.97749363,2635.0,2634.6,3.03648]
[1727337975178,1.19398961,2634.9,2634.5,3.03657]
[1727337975381,1.19398961,2634.8,2634.5,3.03657]
[1727337976317,1.19398961,2634.8,2634.4,3.86347]
[1727337976744,1.94438961,2634.8,2634.5,3.13250498]
[1727337976927,0.7504,2634.8,2634.5,3.13250498]
[1727337977128,1.94438961,2634.8,2634.5,3.13250498]
[1727337978059,0.7504,2634.8,2634.5,3.13250498]
[1727337978955,0.7504,2634.8,2634.6,3.0365]
[1727337979458,1.19398961,2635.0,2634.7,0.09581125]
[1727337984441,1.19398961,2635.0,2634.8,3.03618]
[1727337984647,1.19398961,2635.1,2634.8,3.79948]
[1727337984925,1.19398961,2635.1,2634.9,3.13189752]
[1727337988668,1.19398961,2635.1,2634.9,0.09573752]
[1727337989054,5.01353961,2635.0,2634.9,0.09573752]
[1727337989253,2.07236895,2635.0,2634.3,7.44]
[1727337989423,3.03669,2634.5,2633.9,8.2246]
[1727337989770,3.03693,2634.3,2633.9,8.2246]
[1727337989965,3.03693,2634.3,2633.9,7.44]
[1727337989966,0.70197722,2634.2,2633.9,7.44]
[1727337990169,1.89596683,2634.2,2633.7,3.82208]
[1727337990350,1.19398961,2634.3,2633.8,3.03734]
[1727337990547,1.19398961,2634.2,2633.9,3.0373]
[1727337991137,1.19398961,2634.3,2633.9,3.0373]
[1727337991468,4.23084961,2634.3,2633.7,3.82208]
[1727337991666,5.97800031,2634.3,2633.7,6.85956]
[1727337991977,2.94114031,2634.3,2633.8,0.09378065]
[1727337992158,2.94114031,2634.3,2633.8,3.13118065]
[1727337992473,1.19398961,2634.3,2633.8,3.0374]
[1727337992679,1.19398961,2634.3,2633.9,3.13103376]
[1727337993746,5.04631961,2634.4,2633.9,3.13103376]
[1727337993976,2.00948961,2634.4,2633.9,0.09374376]
[1727337994136,1.19398961,2634.3,2633.9,3.13105376]
[1727337994331,3.03686,2634.3,2633.9,0.09374376]
[1727337994686,4.23084961,2634.3,2633.9,0.09374376]
[1727337994975,3.03686,2634.3,2633.9,0.09374376]
[1727337995468,2.00948961,2634.4,2633.9,0.09374376]
[1727337995668,2.00948961,2634.4,2633.9,3.13105376]
[1727337995847,5.04625961,2634.4,2633.9,3.03731]
[1727337996050,5.04625961,2634.4,2634.0,0.09370687]
[1727337997374,5.04625961,2634.4,2633.9,3.03731]
[1727337997575,5.04625961,2634.4,2634.1,0.09366999]
[1727337997771,5.04625961,2634.4,2634.0,0.09370687]
[1727337997963,3.03685,2634.3,2634.2,0.09363311]
[1727337998160,0.09490178,2634.3,2634.1,0.09366999]
[1727337998369,8.83199158,2634.4,2633.7,3.82208]
[1727337998685,3.03698,2634.2,2633.7,3.82208]
[1727337999461,3.03698,2634.2,2633.7,6.85957]
[1727337999668,3.03698,2634.2,2633.7,3.82208]
[1727338000263,3.03686,2634.3,2633.8,3.03742]
[1727338000579,8.83203158,2634.4,2633.8,3.03742]
[1727338000742,5.04629961,2634.4,2633.9,3.03727]
[1727338001454,3.03686,2634.3,2633.8,3.03742]
[1727338001940,8.08310961,2634.4,2633.8,6.07477]
[1727338002141,5.04629961,2634.4,2633.8,6.07477]
[1727338002378,5.04629961,2634.4,2633.8,3.03735]
[1727338002686,5.04629961,2634.4,2633.7,0.7846]
[1727338002687,3.03699,2634.2,2633.7,0.7846]
[1727338002975,3.03699,2634.2,2633.7,3.82207]
[1727338005239,3.03699,2634.2,2633.8,3.03742]
[1727338006050,11.86886158,2634.4,2633.8,3.03742]
[1727338006560,8.83203158,2634.4,2633.9,3.03731]
[1727338006754,8.83203158,2634.4,2634.0,0.09460242]
[1727338007299,11.86888158,2634.4,2634.0,0.09460242]
[1727338007790,11.86888158,2634.4,2634.1,0.09456553]
[1727338008196,11.86888158,2634.4,2633.8,6.07479]
[1727338008389,1.19398961,2634.3,2634.2,0.09452865]
[1727338008554,1.19398961,2634.3,2633.8,6.07479]
[1727338008889,1.19398961,2634.3,2633.9,0.0946393]
[1727338009265,1.19398961,2634.3,2633.9,3.1319493]
[1727338009448,1.19398961,2634.3,2633.9,0.0946393]
[1727338009650,1.19398961,2634.5,2634.1,3.03699]
[1727338010050,1.19398961,2634.7,2634.4,3.80074]
[1727338010349,1.59204703,2634.8,2634.5,3.1310433]
[1727338010350,1.19398961,2634.8,2634.5,3.1310433]
[1727338010553,1.19398961,2634.8,2634.6,3.03645]
[1727338010779,1.19398961,2634.8,2634.7,0.09437956]
[1727338011391,1.19398961,2634.9,2634.7,0.09437956]
[1727338012959,1.19398961,2634.8,2634.7,0.09437956]
[1727338013420,1.19398961,2634.9,2634.7,0.09437956]
[1727338013628,1.19398961,2634.8,2634.7,0.09437956]
[1727338014027,1.19398961,2634.9,2634.7,0.09437956]
[1727338014229,1.19398961,2634.8,2634.7,0.09437956]
[1727338014720,1.19398961,2634.8,2634.4,3.80068]
[1727338015020,1.19398961,2634.8,2634.5,0.09415003]
[1727338015583,1.19398961,2634.8,2634.5,3.13071003]
[1727338018700,1.19398961,2634.8,2634.7,3.03639]
[1727338018897,0.771,2635.2,2635.0,3.03605]
[1727338018898,1.19398961,2635.1,2635.0,3.03605]
[1727338019132,1.19398961,2635.2,2635.1,3.03593]
[1727338019284,1.19398961,2635.2,2635.1,3.12951331]
[1727338019492,1.19398961,2635.3,2635.1,3.12951331]
[1727338019811,1.19398961,2635.3,2635.1,3.03593]
[1727338020322,3.33798428,2635.4,2635.2,0.09354646]
[1727338020530,1.19296104,2635.3,2635.2,0.09354646]
[1727338021431,2.93889829,2635.4,2635.2,0.09354646]
[1727338021627,1.19296104,2635.3,2635.2,0.09354646]
[1727338021988,1.19296104,2635.3,2635.2,3.12936646]
[1727338022302,1.19296104,2635.3,2635.2,0.09354646]
[1727338022518,1.19296104,2635.4,2635.2,0.09354646]
[1727338024223,1.19296104,2635.3,2635.2,0.09354646]
[1727338024739,1.19296104,2635.3,2634.9,3.03611]
[1727338025030,1.19296104,2635.3,2635.0,0.0932536]
[1727338025638,4.59273065,2635.2,2635.0,0.0932536]
[1727338025791,5.78569169,2635.2,2635.0,0.0932536]
[1727338025991,5.78569169,2635.2,2634.8,3.03627]
[1727338026329,2.00306104,2635.2,2635.1,0.09321674]
[1727338026794,2.00306104,2635.2,2634.8,3.03627]
[1727338026995,2.00306104,2635.2,2635.1,0.09321674]
[1727338027614,2.00306104,2635.2,2634.8,3.03627]
[1727338027818,1.19296104,2635.2,2635.1,0.09321674]
[1727338028017,1.19296104,2635.2,2634.8,3.03627]
[1727338028228,1.19296104,2635.2,2635.1,0.09297705]
[1727338028392,1.19296104,2635.3,2634.8,3.03627]
[1727338028588,1.19296104,2635.2,2635.1,0.09297705]
[1727338028793,1.19296104,2635.2,2634.8,3.03627]
[1727338029015,1.19296104,2635.3,2635.1,0.09297705]
[1727338029235,1.19296104,2635.3,2634.8,3.03627]
[1727338029534,1.19296104,2635.3,2635.2,0.09294019]
[1727338029718,1.19296104,2635.3,2634.9,0.8151]
[1727338029922,1.19296104,2635.3,2635.2,0.09294019]
[1727338030105,1.19296104,2635.3,2634.9,3.85126]
[1727338030313,1.19296104,2635.3,2635.2,0.09294019]
[1727338030511,1.19296104,2635.3,2634.9,3.85126]
[1727338030698,1.19296104,2635.3,2635.2,0.09185353]
[1727338031532,1.19296104,2635.3,2634.8,3.03619]
[1727338031699,4.97559169,2635.3,2635.2,0.09185353]
[1727338031902,4.97559169,2635.3,2634.8,6.0724]
[1727338031903,3.78263065,2635.3,2634.8,6.0724]
[1727338032095,3.78263065,2635.3,2634.7,0.8173]
[1727338032096,3.78263065,2635.3,2635.2,0.09185353]
[1727338032440,8.41037768,2635.3,2634.7,3.85362]
[1727338032646,1.19199638,2635.2,2634.7,3.85362]
[1727338032936,0.7974,2635.0,2634.8,0.09200095]
[1727338033140,3.78263065,2634.9,2634.8,0.09200095]
[1727338033436,3.78263065,2634.9,2634.2,7.44]
[1727338033437,0.7974,2634.6,2634.2,7.44]
[1727338033606,0.7974,2634.6,2634.0,3.03709]
[1727338033607,3.78263065,2634.5,2634.0,3.03709]
[1727338033795,3.78263065,2634.5,2634.2,3.03696]
[1727338034200,3.78263065,2634.5,2634.0,3.03709]
[1727338034201,3.78263065,2634.5,2634.1,3.03708]
[1727338034432,4.97491163,2634.5,2634.1,3.03708]
[1727338034735,3.78263065,2634.5,2634.1,3.03708]
[1727338035114,3.78263065,2634.5,2634.2,3.03696]
[1727338035747,3.78263065,2634.5,2634.1,3.03708]
[1727338036596,3.78263065,2634.5,2634.2,3.03697]
[1727338036802,3.78263065,2634.5,2634.2,3.12626108]
[1727338037104,3.78263065,2634.5,2634.2,3.12620108]
[1727338037604,3.78263065,2634.5,2634.2,6.16311108]
[1727338039542,3.78263065,2634.5,2634.2,3.12620108]
[1727338039949,4.97491163,2634.5,2634.2,0.08929108]
[1727338040243,3.78263065,2634.3,2633.8,3.03736]
[1727338040415,0.8222,2634.2,2633.8,3.03736]
[1727338040618,2.01448098,2634.2,2633.8,3.03736]
[1727338041303,4.97491163,2634.1,2633.6,3.0760614]
[1727338041504,3.78263065,2633.9,2633.6,3.0760614]
[1727338042003,3.78263065,2633.9,2633.6,6.1136414]
[1727338042203,3.78263065,2633.9,2633.6,3.0760014]
[1727338042937,1.19228098,2634.0,2633.6,6.1135914]
[1727338043242,8.01206163,2634.1,2633.6,3.0760014]
[1727338043444,8.01206163,2634.1,2633.6,6.1136014]
[1727338043748,8.01206163,2634.1,2633.6,3.0760014]
[1727338043944,4.97491163,2634.1,2633.7,3.03754]
[1727338044241,1.19228098,2634.1,2633.8,3.03742]
[1727338044448,2.01448098,2634.2,2633.9,3.03721]
[1727338044804,1.19228098,2634.3,2634.0,3.0372]
[1727338045112,1.19228098,2634.3,2634.1,3.03707]
[1727338045336,1.19228098,2634.3,2634.0,3.11312149]
[1727338045337,1.19228098,2634.3,2634.0,3.0372]
[1727338045647,8.01185163,2634.3,2633.7,3.03747]
[1727338045806,8.01185163,2634.3,2633.6,3.8970114]
[1727338045807,1.95538098,2634.1,2633.6,3.8970114]
[1727338046011,8.77510163,2634.1,2633.6,0.0384214]
[1727338046345,11.81225163,2634.1,2633.6,0.0384214]
[1727338046548,1.19228098,2634.0,2633.6,0.0384214]
[1727338046706,1.19228098,2634.0,2633.6,3.0760014]
[1727338047048,8.77510163,2634.1,2633.6,3.0760014]
[1727338047645,1.95538098,2634.1,2633.7,3.03747]
[1727338047807,1.19228098,2634.2,2633.7,0.7789]
[1727338048002,1.19228098,2634.2,2633.8,3.03741]
[1727338048203,1.19228098,2634.2,2633.8,3.03735]
[1727338048405,5.77401163,2634.3,2633.8,3.03735]
[1727338048648,1.99138098,2634.3,2633.8,3.03735]
[1727338049248,5.77401163,2634.3,2633.7,0.7789]
[1727338049411,1.19228098,2634.2,2633.8,3.0374]
[1727338050651,1.19228098,2634.2,2633.9,3.03725]
[1727338050948,6.17143863,2634.3,2634.0,3.03712]
[1727338050949,0.7991,2634.3,2634.0,3.03712]
[1727338051369,0.7991,2634.3,2634.1,3.03707]
[1727338052069,0.7991,2634.3,2634.2,0.08724768]
[1727338053176,1.19228098,2634.4,2634.2,0.08724768]
[1727338053333,1.19228098,2634.5,2634.2,0.08724768]
[1727338053753,5.05232098,2634.6,2634.2,0.08724768]
[1727338053948,1.19228098,2634.5,2634.2,0.08724768]
[1727338055030,1.19228098,2634.5,2634.2,0.16316692]
[1727338055230,2.01578098,2634.6,2634.3,3.03685]
[1727338055646,1.19228098,2634.5,2634.4,0.08719507]
[1727338056051,1.19228098,2634.5,2634.1,3.03702]
[1727338056251,4.22902098,2634.4,2633.9,3.03724]
[1727338056748,3.78263065,2634.2,2633.5,3.03771]
[1727338056953,6.81985065,2634.0,2633.6,0.0384214]
[1727338057149,1.19228098,2633.9,2633.6,0.0384214]
[1727338057351,8.01213163,2634.0,2633.6,0.0384214]
[1727338058537,1.19228098,2634.0,2633.6,3.0760514]
[1727338058754,5.02500098,2634.1,2633.6,3.0760514]
[1727338059156,1.19228098,2634.0,2633.6,3.0760514]
[1727338059355,5.02500098,2634.1,2633.6,3.0760514]
[1727338059798,1.98788098,2634.1,2633.6,3.0760514]
[1727338059963,5.02497098,2634.1,2633.6,3.0760514]
[1727338061499,3.83269,2634.1,2633.6,3.0760514]
[1727338061670,3.83269,2634.1,2633.6,3.0760214]
[1727338062019,0.7956,2634.1,2633.7,3.03753]
[1727338062157,1.19228098,2634.2,2633.9,3.03731]
[1727338062358,0.7714,2634.3,2633.8,3.82465]
[1727338062603,0.7714,2634.3,2634.0,3.03713]
[1727338062898,1.58970798,2634.5,2634.1,3.03708]
[1727338062899,1.95878098,2634.5,2634.1,3.03708]
[1727338064361,0.7665,2634.5,2634.2,3.03696]
[1727338064562,4.97491163,2634.6,2634.2,6.07387]
[1727338064789,1.19228098,2634.6,2634.2,3.03686]
[1727338065094,1.97398098,2634.7,2634.2,6.89675]
[1727338065481,1.19228098,2634.6,2634.2,6.89676]
[1727338066366,1.19228098,2634.6,2634.3,3.03685]
[1727338066567,1.97398098,2634.7,2634.3,3.03685]
[1727338066962,1.97398098,2634.7,2634.4,0.08411851]
[1727338067405,0.7817,2634.7,2634.4,3.12078851]
[1727338067697,0.7817,2634.7,2634.5,3.03662]
[1727338067897,0.7817,2634.7,2634.5,3.12070164]
[1727338068398,1.19228098,2634.8,2634.5,3.12070164]
[1727338069462,1.19228098,2634.7,2634.5,0.08408164]
[1727338069661,1.19228098,2634.7,2634.3,3.03685]
[1727338069894,3.78263065,2634.6,2634.2,3.03695]
[1727338070120,0.7575,2634.5,2634.2,3.03695]
[1727338071332,0.7575,2634.5,2634.3,3.03684]
[1727338071937,0.7575,2634.5,2634.3,6.07363]
[1727338072120,1.58970798,2634.7,2634.3,3.03679]
[1727338072121,1.94348098,2634.7,2634.3,3.03679]
[1727338072293,1.19228098,2634.6,2634.3,3.03679]
[1727338074429,1.19228098,2634.6,2634.3,6.07358]
[1727338074967,1.19228098,2634.5,2634.3,6.07358]
[1727338075112,1.19228098,2634.6,2634.3,6.07358]
[1727338075319,1.19228098,2634.5,2634.3,6.07358]
[1727338075543,1.19228098,2634.5,2634.3,3.03679]
[1727338075740,1.19228098,2634.5,2634.3,6.07358]
[1727338076322,1.19228098,2634.5,2634.3,3.03679]
[1727338077078,1.19228098,2634.5,2634.3,6.07359]
[1727338077293,1.19228098,2634.5,2634.3,3.03679]
[1727338078072,1.19228098,2634.5,2634.4,3.03674]
[1727338079185,1.19228098,2634.6,2634.5,3.03662]
[1727338079343,1.19228098,2634.7,2634.6,3.03651]
[1727338081647,1.19228098,2634.7,2634.6,3.11433676]
[1727338081843,1.19228098,2634.8,2634.7,3.03639]
[1727338082192,1.58970798,2634.9,2634.7,3.1141799]
[1727338082694,1.19416746,2634.8,2634.7,3.03639]
[1727338083345,1.19416746,2634.8,2634.5,3.11252443]
[1727338083545,1.19416746,2634.8,2634.6,3.03648]
[1727338085085,1.19416746,2634.8,2634.5,0.07590443]
[1727338085292,1.19416746,2634.7,2634.4,0.86300318]
[1727338085598,1.19416746,2634.7,2634.5,3.03657]
[1727338085949,1.19416746,2634.8,2634.5,3.03657]
[1727338086798,1.19416746,2634.8,2634.6,3.03651]
[1727338087442,1.19416746,2634.8,2634.5,3.11252304]
[1727338087677,1.19416746,2634.8,2634.5,3.03662]
[1727338087887,1.19416746,2634.8,2634.3,3.03679]
[1727338088085,1.19416746,2634.8,2634.2,0.8294]
[1727338088086,4.97679811,2634.7,2634.2,0.8294]
[1727338088290,8.01320811,2634.7,2634.2,0.8294]
[1727338088447,1.19416746,2634.6,2634.2,0.8294]
[1727338089299,1.19416746,2634.6,2634.2,3.86637]
[1727338089497,0.82,2634.6,2634.1,3.03708]
[1727338089714,2.01416746,2634.6,2634.1,6.0741]
[1727338090299,2.01416746,2634.6,2634.1,3.03702]
[1727338090468,2.01416746,2634.6,2634.2,3.03695]
[1727338091373,2.01416746,2634.6,2634.3,3.03681]
[1727338091606,1.19416746,2634.6,2634.3,3.03681]
[1727338092625,1.19416746,2634.6,2634.3,6.0736]
[1727338092790,2.01416746,2634.7,2634.3,6.0736]
[1727338092992,1.19416746,2634.6,2634.3,3.03679]
[1727338096336,1.19416746,2634.6,2634.3,6.07356]
[1727338096526,1.19416746,2634.6,2634.5,3.03662]
[1727338096824,1.58970798,2634.7,2634.5,3.03662]
[1727338096825,1.19416746,2634.7,2634.5,3.03656]
[1727338096984,1.19416746,2634.7,2634.5,6.14847458]
[1727338097184,1.19416746,2634.7,2634.5,3.11191458]
[1727338097839,1.19416746,2634.6,2634.5,0.07536458]
[1727338099432,1.19416746,2634.6,2634.4,3.03674]
[1727338099603,1.19416746,2634.6,2634.5,0.07536458]
[1727338099803,1.19416746,2634.6,2634.5,3.11198458]
[1727338100740,1.19416746,2634.6,2634.5,0.07536458]
[1727338102069,1.96946746,2634.6,2634.5,0.07536458]
[1727338102238,1.96946746,2634.6,2634.4,3.03672]
[1727338102567,1.19416746,2634.6,2634.5,3.11189335]
[1727338104231,1.58970798,2634.7,2634.5,3.11189335]
[1727338104736,1.58970798,2634.7,2634.6,3.03651]
[1727338104737,1.1947439,2634.7,2634.6,3.03651]
[1727338105128,1.1947439,2634.7,2634.6,3.11165525]
[1727338105647,1.1947439,2634.7,2634.6,0.07514525]
[1727338106065,2.40510798,2634.7,2634.6,0.07514525]
[1727338106240,0.8154,2634.4,2633.8,0.8299]
[1727338106457,0.8154,2634.4,2633.9,3.03721]
[1727338106458,1.19556991,2634.2,2633.9,3.03721]
[1727338106632,1.19556991,2634.1,2633.9,6.07446]
[1727338107228,1.19556991,2634.1,2634.0,3.0372]
[1727338108340,1.19556991,2634.1,2633.9,3.03721]
[1727338108740,1.19556991,2634.1,2634.0,3.0372]
[1727338111646,1.19556991,2634.1,2634.0,3.10789151]
[1727338113340,1.59409322,2634.2,2634.1,3.03709]
[1727338113341,1.19556991,2634.2,2634.1,3.03709]
[1727338113782,1.19556991,2634.2,2634.1,3.10770958]
[1727338114089,1.59409322,2634.4,2634.2,3.79387]
[1727338114381,1.59409322,2634.4,2634.3,3.03685]
[1727338114553,1.59409322,2634.4,2634.3,3.10739583]
[1727338114756,1.19634398,2634.4,2634.3,3.10739583]
[1727338116225,1.19634398,2634.4,2634.3,3.03685]
[1727338116415,1.19634398,2634.4,2634.3,3.10739583]
[1727338117296,1.19634398,2634.5,2634.4,3.03674]
[1727338117829,1.19627475,2634.5,2634.4,3.10724895]
[1727338118031,1.59409322,2634.5,2634.4,3.10724895]
[1727338118389,1.19628359,2634.5,2634.4,3.10724895]
[1727338118907,1.59409322,2634.6,2634.4,3.10724895]
[1727338119339,1.196286,2634.5,2634.4,3.10724895]
[1727338119938,1.59409322,2634.6,2634.4,3.10724895]
[1727338121750,1.59409322,2634.5,2634.4,0.07050895]
[1727338124246,1.59409322,2634.6,2634.4,0.07050895]
[1727338124437,1.59409322,2634.6,2634.4,3.10724895]
[1727338124745,1.59409322,2634.5,2634.4,3.10724895]
[1727338124907,1.59409322,2634.5,2634.4,0.07050895]
[1727338126352,1.59409322,2634.5,2634.4,3.10724895]
[1727338129767,1.59409322,2634.5,2634.4,0.07050895]
[1727338130066,1.59409322,2634.5,2634.3,3.03685]
[1727338130263,0.7613,2634.4,2634.3,3.03685]
[1727338130563,2.35539322,2634.4,2634.3,3.03685]
[1727338131141,2.35539322,2634.4,2634.1,3.037]
[1727338131324,1.19661722,2634.2,2634.1,3.037]
[1727338131523,1.59548963,2634.3,2634.1,6.07403]